fUST/lending_fUST_20241111
["ID","MTS","AMOUNT","RATE_DAILY","PERIOD"]
[341935594,1731313841113,-1408.65871509,0.00024557,2]
[341935596,1731313841123,-3441.92003088,0.00024567,30]
[341935598,1731313841132,-527.0,0.000246,2]
[341935600,1731313841141,-3000.0,0.000246,2]
[341935602,1731313841150,-156.0,0.00024603,3]
[341935604,1731313841159,-3000.0,0.0002461,2]
[341935606,1731313841169,-3000.0,0.0002462,2]
[341935608,1731313841178,-3000.0,0.0002463,2]
[341935610,1731313841187,-3000.0,0.0002464,2]
[341935612,1731313841197,-264.03,0.00024647,3]
[341935614,1731313841208,-567.2,0.00024647,3]
[341935616,1731313841217,-283.6,0.00024647,3]
[341935618,1731313841227,-850.85,0.00024647,3]
[341935620,1731313841239,-3000.0,0.0002465,2]
[341935622,1731313841250,-635.41576859,0.00024656,2]
[341935624,1731313841259,-500.0,0.00024657,2]
[341935626,1731313841269,-500.0,0.00024657,2]
[341935628,1731313841279,-500.78523719,0.00024657,2]
[341935630,1731313841288,-500.0,0.00024657,2]
[341935632,1731313841297,-252.34092321,0.00024657,2]
[341935634,1731313841306,-500.0,0.00024657,2]
[341935636,1731313841317,-500.0,0.00024657,2]
[341935638,1731313841327,-500.0,0.00024657,2]
[341935640,1731313841336,-500.0,0.00024657,2]
[341935642,1731313841346,-500.0,0.00024657,2]
[341935644,1731313841355,-500.0,0.00024657,2]
[341935646,1731313841364,-500.0,0.00024657,2]
[341935648,1731313841373,-521.54726751,0.00024657,2]
[341935650,1731313841382,-500.0,0.00024657,2]
[341935652,1731313841392,-500.0,0.00024657,2]
[341935654,1731313841400,-547.2059667,0.00024657,2]
[341935656,1731313841409,-500.0,0.00024657,2]
[341935658,1731313841419,-516.13928071,0.00024657,2]
[341935660,1731313841428,-500.0,0.00024657,2]
[341935662,1731313841438,-500.0,0.00024657,2]
[341935664,1731313841447,-500.0,0.00024657,2]
[341935666,1731313841458,-500.0,0.00024657,2]
[341935667,1731313841468,-500.0,0.00024657,2]
[341935669,1731313841476,-500.0,0.00024657,2]
[341935671,1731313841485,-500.0,0.00024657,2]
[341935673,1731313841495,-500.0,0.00024657,2]
[341935675,1731313841505,-500.0,0.00024657,2]
[341935677,1731313841514,-500.0,0.00024657,2]
[341935678,1731313841523,-500.0,0.00024657,2]
[341935680,1731313841533,-500.0,0.00024657,2]
[341935682,1731313841542,-500.0,0.00024657,2]
[341935684,1731313841551,-500.0,0.00024657,2]
[341935686,1731313841560,-500.0,0.00024657,2]
[341935688,1731313841569,-500.0,0.00024657,2]
[341935689,1731313841578,-500.0,0.00024657,2]
[341935691,1731313841587,-500.0,0.00024657,2]
[341935693,1731313841597,-500.0,0.00024657,2]
[341935695,1731313841607,-500.0,0.00024657,2]
[341935697,1731313841617,-500.0,0.00024657,2]
[341935699,1731313841626,-500.0,0.00024657,2]
[341935700,1731313841635,-500.0,0.00024657,2]
[341935702,1731313841644,-500.0,0.00024657,2]
[341935704,1731313841653,-500.0,0.00024657,2]
[341935706,1731313841662,-500.0,0.00024657,2]
[341935708,1731313841671,-500.0,0.00024657,2]
[341935709,1731313841680,-500.0,0.00024657,2]
[341935711,1731313841689,-500.0,0.00024657,2]
[341935713,1731313841699,-599.32148871,0.00024657,2]
[341935715,1731313841710,-500.0,0.00024657,2]
[341935717,1731313841720,-500.0,0.00024657,2]
[341935719,1731313841729,-500.0,0.00024657,2]
[341935721,1731313841738,-500.0,0.00024657,2]
[341935722,1731313841747,-500.0,0.00024657,2]
[341935724,1731313841757,-500.0,0.00024657,2]
[341935726,1731313841781,-500.0,0.00024657,2]
[341935728,1731313841905,-500.0,0.00024657,2]
[341935730,1731313841915,-500.0,0.00024657,2]
[341935732,1731313841925,-500.0,0.00024657,2]
[341935734,1731313841934,-500.0,0.00024657,2]
[341935736,1731313841943,-500.0,0.00024657,2]
[341935737,1731313841954,-500.0,0.00024657,2]
[341935739,1731313841963,-500.0,0.00024657,2]
[341935741,1731313841973,-500.0,0.00024657,2]
[341935743,1731313841982,-500.0,0.00024657,2]
[341935745,1731313841991,-500.0,0.00024657,2]
[341935746,1731313841999,-500.0,0.00024657,2]
[341935748,1731313842009,-500.00489528,0.00024657,2]
[341935750,1731313842018,-500.0,0.00024657,2]
[341935752,1731313842028,-500.0,0.00024657,2]
[341935754,1731313842037,-500.0,0.00024657,2]
[341935756,1731313842046,-500.0,0.00024657,2]
[341935757,1731313842056,-500.0,0.00024657,2]
[341935759,1731313842065,-500.0,0.00024657,2]
[341935761,1731313842075,-500.0,0.00024657,2]
[341935763,1731313842084,-500.0,0.00024657,2]
[341935765,1731313842094,-500.0,0.00024657,2]
[341935767,1731313842103,-311.01696002,0.00024657,2]
[341935768,1731313842112,-500.0,0.00024657,2]
[341935770,1731313842122,-570.14155393,0.00024657,2]
[341935772,1731313842131,-500.0,0.00024657,2]
[341935774,1731313842141,-651.29,0.00024657,2]
[341935776,1731313842151,-500.0,0.00024657,2]
[341935777,1731313842160,-500.0,0.00024657,2]
[341935779,1731313842170,-513.36927147,0.00024657,2]
[341935781,1731313842179,-500.0,0.00024657,2]
[341935783,1731313842189,-516.33290779,0.00024657,2]
[341935785,1731313842198,-200.0,0.00024657,2]
[341935786,1731313842212,-500.0,0.00024657,2]
[341935788,1731313842222,-500.0,0.00024657,2]
[341935790,1731313842231,-500.0,0.00024657,2]
[341935792,1731313842242,-500.0,0.00024657,2]
[341935794,1731313842252,-500.0,0.00024657,2]
[341935796,1731313842262,-500.0,0.00024657,2]
[341935798,1731313842271,-500.0,0.00024657,2]
[341935800,1731313842282,-500.0,0.00024657,2]
[341935801,1731313842292,-500.0,0.00024657,2]
[341935803,1731313842301,-500.0,0.00024657,2]
[341935805,1731313842311,-500.0,0.00024657,2]
[341935807,1731313842320,-500.0,0.00024657,2]
[341935809,1731313842329,-501.06324279,0.00024657,2]
[341935811,1731313842340,-588.37737189,0.00024657,2]
[341935813,1731313842349,-500.0,0.00024657,2]
[341935815,1731313842359,-500.0,0.00024657,2]
[341935817,1731313842368,-509.33056743,0.00024657,2]
[341935819,1731313842377,-500.0,0.00024657,2]
[341935821,1731313842387,-509.37036741,0.00024657,2]
[341935822,1731313842396,-511.3356483,0.00024657,2]
[341935825,1731313842406,-500.0,0.00024657,2]
[341935826,1731313842416,-500.0,0.00024657,2]
[341935828,1731313842425,-500.0,0.00024657,2]
[341935830,1731313842434,-501.0858218,0.00024657,2]
[341935832,1731313842445,-500.82599627,0.00024657,2]
[341935834,1731313842454,-500.0,0.00024657,2]
[341935836,1731313842464,-500.0,0.00024657,2]
[341935838,1731313842473,-503.44588046,0.00024657,2]
[341935840,1731313842482,-550.20104053,0.00024657,2]
[341935841,1731313842491,-252.38903999,0.00024657,2]
[341935843,1731313842500,-500.0,0.00024657,2]
[341935845,1731313842509,-500.0,0.00024657,2]
[341935847,1731313842519,-501.68310283,0.00024657,2]
[341935849,1731313842529,-500.0,0.00024657,2]
[341935851,1731313842538,-502.48820385,0.00024657,2]
[341935853,1731313842547,-500.0,0.00024657,2]
[341935854,1731313842557,-500.0,0.00024657,2]
[341935856,1731313842566,-500.0,0.00024657,2]
[341935858,1731313842576,-500.0,0.00024657,2]
[341935860,1731313842586,-533.03587808,0.00024657,2]
[341935862,1731313842595,-500.0,0.00024657,2]
[341935864,1731313842605,-500.0,0.00024657,2]
[341935866,1731313842614,-500.0,0.00024657,2]
[341935868,1731313842623,-500.0,0.00024657,2]
[341935869,1731313842632,-500.0,0.00024657,2]
[341935871,1731313842641,-200.03510804,0.00024657,2]
[341935873,1731313842651,-550.69231894,0.00024657,2]
[341935875,1731313842661,-500.0,0.00024657,2]
[341935877,1731313842670,-500.0,0.00024657,2]
[341935879,1731313842680,-500.0,0.00024657,2]
[341935881,1731313842689,-500.0,0.00024657,2]
[341935883,1731313842699,-2596.61,0.00024657,2]
[341935885,1731313842711,-2596.61,0.00024657,2]
[341935886,1731313842721,-2596.61,0.00024657,2]
[341935888,1731313842731,-2596.61,0.00024657,2]
[341935890,1731313842741,-67.42531941,0.00024657,2]
[341935986,1731313843684,-2529.18468059,0.00024657,2]
[341935988,1731313843695,-1470.81531941,0.00024657,2]
[341935989,1731313843751,-1125.79468059,0.00024657,2]
[341935990,1731313843760,-500.0,0.00024657,2]
[341935991,1731313843770,-1814.45489261,0.00024657,2]
[341936973,1731313980330,160.876194,0.00013973,2]
[341936975,1731314202299,287.29770713,0.00031336,30]
[341936976,1731314346359,1759.83067541,0.00031332,120]
[341936977,1731314372969,1169.27083333,0.00020844,2]
[341936978,1731314650260,160.876194,0.00013973,2]
[341936979,1731314684326,1169.27083333,0.00020844,2]
[341936982,1731314841405,572.4845903,0.0002,2]
[341936987,1731314995974,1169.27083333,0.00020844,2]
[341937009,1731315032419,-267.39367551,0.00020845,2]
[341937010,1731315032480,-901.87715782,0.00020845,2]
[341937011,1731315032492,-572.4845903,0.00022,2]
[341937012,1731315032504,-166.666666,0.00022416,2]
[341937013,1731315032515,-572.4845903,0.00023,2]
[341937014,1731315032526,-957.5803437,0.00023121,2]
[341937015,1731315032538,-300.0,0.00023465,2]
[341937016,1731315032549,-300.0,0.00023465,2]
[341937017,1731315032561,-150.0,0.00023466,2]
[341937018,1731315032572,-1127.0,0.00023466,2]
[341937019,1731315032581,-530.0,0.00023466,2]
[341937020,1731315032591,-1858.21750488,0.00023466,2]
[341937021,1731315032609,-532.78249512,0.00023466,2]
[341937022,1731315032619,-340.95250488,0.0002446,2]
[341937025,1731315038488,-259.04749512,0.0002446,2]
[341937027,1731315038498,-262.58483547,0.00024557,2]
[341937033,1731315038543,-6.34518314,0.00024557,2]
[341937035,1731315038553,-24194.81956342,0.00024557,2]
[341937036,1731315038565,-15502.7494346,0.00024557,2]
[341937037,1731315038604,-820.51623456,0.00024557,2]
[341937038,1731315038614,-162.705,0.00024557,7]
[341937039,1731315038623,-1267.79284359,0.00024557,2]
[341937040,1731315038632,-2290.05280185,0.000246,2]
[341938486,1731315371190,1169.27083333,0.00020844,2]
[341938487,1731315372008,160.876194,0.00013973,2]
[341938491,1731315530074,5000.0,0.00020844,2]
[341938492,1731315545223,5000.0,0.00020844,2]
[341938493,1731315560410,2951.18295949,0.00020844,2]
[341938494,1731315589693,159.372,0.0002573,60]
[341938495,1731315590305,159.685,0.0002636,60]
[341938497,1731315682799,1169.27083333,0.00020844,2]
[341938501,1731315994372,1169.27083333,0.00020844,2]
[341938502,1731316192923,359.475628,0.00013973,2]
[341938503,1731316193156,359.475628,0.00020447,2]
[341938519,1731316232618,-300.0,0.00020844,2]
[341938520,1731316232630,-869.27083333,0.00020844,2]
[341938521,1731316232640,-159.433,0.0002135,2]
[341938522,1731316232650,-5150.0,0.00021886,2]
[341938523,1731316232659,-188.22525,0.00021997,2]
[341938524,1731316232670,-419.5587209,0.00022749,2]
[341938525,1731316232679,-2391.0,0.00023342,2]
[341938526,1731316232688,-300.0,0.00023464,2]
[341938527,1731316232697,-300.0,0.00023464,2]
[341938528,1731316232707,-150.0,0.00023466,2]
[341938529,1731316232716,-150.0,0.00023466,2]
[341938530,1731316232726,-1127.0,0.00023466,2]
[341938531,1731316232736,-530.0,0.00023466,2]
[341938532,1731316232745,-600.0,0.00023671,2]
[341938533,1731316232755,-216.4442038,0.00023778,2]
[341938534,1731316232764,-409.1791658,0.00023778,2]
[341938535,1731316232774,-600.0,0.00023917,2]
[341938536,1731316232783,-3677.92820187,0.00024038,2]
[341938537,1731316232800,-4104.90606807,0.00024038,2]
[341938538,1731316232811,-2601.56141344,0.00024064,2]
[341938539,1731316232820,-5150.0,0.00024075,4]
[341938540,1731316232830,-600.0,0.00024164,2]
[341938541,1731316232839,-3000.0,0.000242,2]
[341938542,1731316232849,-1767.72449278,0.0002421,2]
[341938771,1731316240730,-179.27772102,0.0002421,2]
[341939301,1731316246882,-1169.27083333,0.00020844,2]
[341939303,1731316246892,-1052.9977862,0.0002421,2]
[341939305,1731316246903,-3000.0,0.0002422,2]
[341939307,1731316246913,-3000.0,0.0002423,2]
[341939309,1731316246923,-179.28667908,0.0002423,2]
[341939311,1731316246935,-3000.0,0.0002424,2]
[341939313,1731316246946,-3000.0,0.0002425,2]
[341939316,1731316246957,-3000.0,0.0002426,2]
[341939317,1731316246966,-2598.44470139,0.0002427,2]
[341940348,1731316513550,51778.7680816,0.0001,2]
[341940349,1731316661704,-1169.27083333,0.00020844,2]
[341940350,1731316681293,1169.27083333,0.00020844,2]
[341940351,1731316744494,1169.27083333,0.00020844,2]
[341940352,1731316887025,340.380595,0.00013973,2]
[341940353,1731316887247,340.380595,0.00020447,2]
[341940356,1731317036184,781.55007964,0.00020847,2]
[341940357,1731317044853,5000.0,0.00020847,2]
[341940373,1731317301680,6476.42181937,0.0002,2]
[341940374,1731317302208,6597.65329145,0.000125,2]
[341940375,1731317307648,189.46656107,0.0002,10]
[341940376,1731317313084,810.53343893,0.00012,7]
[341940377,1731317313116,13.25913713,0.00012,7]
[341940378,1731317313735,429.60176473,0.000134,2]
[341940379,1731317314287,174.693309,0.00020553,2]
[341940380,1731317317113,847.71856844,0.0002,2]
[341940381,1731317318602,4313.32431052,0.0002066,7]
[341940382,1731317318855,4241.23142447,0.00015,7]
[341940383,1731317321990,338.01336897,0.0001,7]
[341940389,1731317324235,151.61833421,0.0002,7]
[341940390,1731317325975,13675.63627883,0.00016,7]
[341940396,1731317388163,1875.514322,0.00020798,2]
[341940405,1731317431896,-250.0,0.00021018,2]
[341940406,1731317431905,-232.8605347,0.00021068,2]
[341940407,1731317431914,-588.064068,0.00021187,2]
[341940408,1731317431923,-958.3570715,0.00021212,2]
[341940409,1731317431932,-1875.514322,0.00021483,2]
[341940410,1731317431941,-1169.27083333,0.00021558,2]
[341940411,1731317431950,-3483.2958941,0.000219,2]
[341940412,1731317431959,-177.939706,0.00021918,2]
[341940413,1731317431968,-300.0,0.00021999,2]
[341940414,1731317431977,-300.0,0.00021999,2]
[341940415,1731317431987,-179.28667908,0.00022,2]
[341940416,1731317431997,-46000.0,0.00022,2]
[341940417,1731317432007,-210.61089129,0.00022,30]
[341940418,1731317432018,-422.0094,0.00022,30]
[341940436,1731317438044,-521.000003,0.00022,30]
[341940905,1731317443137,-4126.02551528,0.00022,30]
[341942469,1731317584314,314.671718,0.00013973,2]
[341942470,1731317584554,314.671718,0.00020447,2]
[341942479,1731318171412,1169.27083333,0.00020847,2]
[341942480,1731318281021,291.12406,0.00013973,2]
[341942481,1731318281225,291.12406,0.00020447,2]
[341942482,1731318441117,-1169.27083333,0.00020872,2]
[341942483,1731318441137,-289.2045592,0.00021048,2]
[341942484,1731318441158,-625.17144,0.00021057,2]
[341942485,1731318441178,-352.0170737,0.00021057,2]
[341942486,1731318441198,-2195.2990899,0.00021193,2]
[341942487,1731318441221,-175.516737,0.00021596,2]
[341942488,1731318441241,-175.516737,0.00021611,2]
[341942489,1731318441262,-175.516737,0.00021627,2]
[341942490,1731318441282,-175.516737,0.00021642,2]
[341942491,1731318441302,-175.516737,0.00021657,2]
[341942492,1731318441323,-175.516737,0.00021673,2]
[341942493,1731318441343,-7782.83426995,0.00021678,2]
[341942494,1731318441364,-175.516737,0.00021688,2]
[341942495,1731318441385,-175.516737,0.00021704,2]
[341942496,1731318441405,-294.032034,0.00021705,2]
[341942497,1731318441425,-625.17144,0.00021742,2]
[341942498,1731318441446,-250.0,0.00021828,2]
[341942499,1731318441469,-300.0,0.00021899,2]
[341942500,1731318441489,-300.0,0.00021899,2]
[341942501,1731318441508,-177.939706,0.00021918,2]
[341942502,1731318441526,-13586.10540318,0.00022,30]
[341942503,1731318441546,-204.0,0.00022,2]
[341942504,1731318441566,-151.0,0.00022,2]
[341942505,1731318441585,-177.04125,0.00022006,2]
[341942506,1731318441606,-200.367,0.00022006,2]
[341942507,1731318441626,-4213.8371813,0.00022011,2]
[341942508,1731318441645,-592.901034,0.00022111,2]
[341942509,1731318441665,-204.0,0.00022192,2]
[341942510,1731318441684,-625.17144,0.00022427,2]
[341942511,1731318441706,-204.0,0.00023014,2]
[341942512,1731318441726,-151.0,0.00023014,2]
[341942513,1731318441750,-4213.83718128,0.00023157,2]
[341942514,1731318441769,-177.939706,0.000232,2]
[341942515,1731318441789,-150.0,0.00023574,2]
[341942516,1731318441809,-530.0,0.00023574,2]
[341942517,1731318441832,-1127.0,0.00023574,2]
[341942518,1731318441852,-2391.0,0.00023574,2]
[341942519,1731318441872,-600.0,0.00023671,2]
[341942520,1731318441892,-420.0,0.00023799,2]
[341942521,1731318441912,-270.17,0.00023887,3]
[341942522,1731318441932,-360.23,0.00023887,3]
[341942523,1731318441954,-180.11,0.00023887,3]
[341942524,1731318441973,-540.36,0.00023887,3]
[341942525,1731318441992,-172.36137731,0.00023897,2]
[341942526,1731318442013,-38658.95063391,0.00023897,2]
[341942527,1731318442034,-151.0,0.00023897,7]
[341942528,1731318442053,-151.0,0.00023897,7]
[341942529,1731318442073,-151.0,0.00023897,7]
[341942530,1731318442093,-151.0,0.00023897,7]
[341942531,1731318442114,-151.0,0.00023897,7]
[341942532,1731318442262,-151.0,0.00023897,7]
[341942533,1731318442283,-151.0,0.00023897,7]
[341942534,1731318442303,-151.0,0.00023897,7]
[341942535,1731318442323,-151.0,0.00023897,7]
[341942536,1731318442342,-159.922946,0.00023897,7]
[341942537,1731318442361,-151.0,0.00023897,7]
[341942538,1731318442381,-159.922946,0.00023897,7]
[341942539,1731318442402,-245.093411,0.00023897,7]
[341942540,1731318442423,-151.0,0.00023897,7]
[341942541,1731318442443,-309.073197,0.00023897,7]
[341942542,1731318442464,-151.0,0.00023897,7]
[341942543,1731318442484,-309.073197,0.00023897,7]
[341942544,1731318442504,-151.0,0.00023897,7]
[341942545,1731318442524,-591.069816,0.00023897,7]
[341942546,1731318442545,-151.0,0.00023897,7]
[341942547,1731318442565,-591.069816,0.00023897,7]
[341942548,1731318442585,-159.442251,0.00023897,7]
[341942549,1731318442605,-159.442251,0.00023897,7]
[341942550,1731318442626,-173.424392,0.00023897,7]
[341942551,1731318442645,-173.424392,0.00023897,7]
[341942552,1731318442666,-377.953128,0.00023897,7]
[341942553,1731318442686,-377.953128,0.00023897,7]
[341942554,1731318442708,-151.0,0.00023897,7]
[341942555,1731318442728,-151.0,0.00023897,7]
[341942556,1731318442754,-1499.528896,0.00023897,7]
[341942557,1731318442778,-1162.564185,0.00023897,7]
[341942558,1731318442800,-1499.528896,0.00023897,7]
[341942559,1731318442822,-1162.564185,0.00023897,7]
[341942560,1731318442843,-151.0,0.00023897,7]
[341942561,1731318442863,-585.689094,0.00023897,7]
[341942562,1731318442884,-585.689094,0.00023897,7]
[341942563,1731318442904,-151.319325,0.00023897,7]
[341942564,1731318442925,-284.956872,0.00023897,7]
[341942565,1731318442945,-284.956872,0.00023897,7]
[341942566,1731318442965,-465.47555,0.00023897,7]
[341942567,1731318442985,-151.0,0.00023897,7]
[341942568,1731318443006,-465.47555,0.00023897,7]
[341942569,1731318443026,-284.956872,0.00023897,7]
[341942570,1731318443047,-284.956872,0.00023897,7]
[341942571,1731318443067,-907.609362,0.00023897,7]
[341942572,1731318443087,-907.609362,0.00023897,7]
[341942573,1731318443108,-631.007892,0.00023897,7]
[341942574,1731318443129,-631.007892,0.00023897,7]
[341942575,1731318443150,-631.007892,0.00023897,7]
[341942576,1731318443171,-631.007892,0.00023897,7]
[341942577,1731318443191,-199.991712,0.00023897,7]
[341942578,1731318443214,-199.991712,0.00023897,7]
[341942579,1731318443234,-151.0,0.00023897,7]
[341942580,1731318443254,-151.0,0.00023897,7]
[341942581,1731318443275,-199.991712,0.00023897,7]
[341942582,1731318443296,-199.991712,0.00023897,7]
[341942583,1731318443331,-2009.812751,0.00023897,7]
[341942584,1731318443363,-2009.812751,0.00023897,7]
[341942585,1731318443396,-2009.812751,0.00023897,7]
[341942586,1731318443429,-2009.812751,0.00023897,7]
[341942587,1731318443462,-151.0,0.00023917,7]
[341942588,1731318443493,-162.7062273,0.00023917,5]
[341942589,1731318443522,-600.0,0.00023917,2]
[341942590,1731318443549,-151.0,0.00023918,7]
[341942591,1731318443581,-151.0,0.00023918,7]
[341942592,1731318443613,-151.0,0.00023918,7]
[341942593,1731318443645,-151.0,0.00023918,7]
[341942594,1731318443670,-151.0,0.00023918,7]
[341942595,1731318443703,-151.0,0.00023918,7]
[341942596,1731318443730,-151.0,0.00023918,7]
[341942597,1731318443760,-151.0,0.00023918,7]
[341942598,1731318443788,-173.424392,0.00023918,7]
[341942599,1731318443817,-173.424392,0.00023918,7]
[341942600,1731318443847,-377.953128,0.00023918,7]
[341942601,1731318443874,-377.953128,0.00023918,7]
[341942602,1731318443903,-151.0,0.00023918,7]
[341942603,1731318443930,-1162.564185,0.00023918,7]
[341942604,1731318443959,-1162.564185,0.00023918,7]
[341942605,1731318443986,-203.888395,0.00023918,7]
[341942606,1731318444014,-585.689094,0.00023918,7]
[341942607,1731318444042,-585.689094,0.00023918,7]
[341942608,1731318444069,-631.007892,0.00023918,7]
[341942609,1731318444096,-631.007892,0.00023918,7]
[341942610,1731318444124,-199.991712,0.00023918,7]
[341942611,1731318444150,-151.0,0.00023918,7]
[341942612,1731318444178,-199.991712,0.00023918,7]
[341942613,1731318444206,-151.324377,0.00023985,7]
[341942614,1731318444238,-151.0,0.00023985,7]
[341942615,1731318444271,-222.648678,0.00023985,7]
[341942616,1731318444300,-151.0,0.00024037,7]
[341942617,1731318444329,-151.0,0.00024037,2]
[341942618,1731318444358,-420.0,0.00024089,2]
[341942619,1731318444386,-270.17,0.00024144,3]
[341942620,1731318444413,-600.0,0.00024164,2]
[341942621,1731318444442,-245.093411,0.00024164,7]
[341942622,1731318444470,-151.0,0.00024164,7]
[341942623,1731318444497,-309.073197,0.00024164,7]
[341942624,1731318444524,-151.0,0.00024164,7]
[341942625,1731318444553,-309.073197,0.00024164,7]
[341942626,1731318444580,-151.0,0.00024164,7]
[341942627,1731318444608,-591.069816,0.00024164,7]
[341942628,1731318444635,-591.069816,0.00024164,7]
[341942629,1731318444662,-159.442251,0.00024164,7]
[341942630,1731318444684,-159.442251,0.00024164,7]
[341942631,1731318444708,-1499.528896,0.00024164,7]
[341942632,1731318444930,-1499.528896,0.00024164,7]
[341942633,1731318444985,-465.47555,0.00024164,7]
[341942634,1731318445007,-187.676056,0.00024164,7]
[341942635,1731318445028,-284.956872,0.00024164,7]
[341942636,1731318445051,-465.47555,0.00024164,7]
[341942637,1731318445073,-284.956872,0.00024164,7]
[341942638,1731318445095,-907.609362,0.00024164,7]
[341942639,1731318445118,-907.609362,0.00024164,7]
[341942640,1731318445138,-631.007892,0.00024164,7]
[341942641,1731318445159,-631.007892,0.00024164,7]
[341942642,1731318445179,-199.991712,0.00024164,7]
[341942643,1731318445200,-199.991712,0.00024164,7]
[341942644,1731318445223,-2009.812751,0.00024164,7]
[341942645,1731318445244,-206.0,0.00024164,2]
[341942646,1731318445264,-782.87918434,0.0002417,2]
[341942647,1731318445286,-151.0,0.000242,7]
[341942648,1731318445307,-151.0,0.000242,7]
[341942649,1731318445329,-151.0,0.000242,7]
[341942650,1731318445349,-151.0,0.000242,7]
[341942651,1731318445370,-151.0,0.000242,7]
[341942652,1731318445391,-151.0,0.000242,7]
[341942653,1731318445411,-151.0,0.000242,7]
[341942654,1731318445431,-159.922946,0.000242,7]
[341942655,1731318445454,-231.448297,0.000242,7]
[341942656,1731318445475,-159.922946,0.000242,7]
[341942657,1731318445497,-3000.0,0.000242,2]
[341942658,1731318445518,-106.3213253,0.000242,7]
[341942659,1731318445550,-67.1030667,0.000242,7]
[341942660,1731318445570,-173.424392,0.000242,7]
[341942661,1731318445592,-377.953128,0.000242,7]
[341942662,1731318445614,-377.953128,0.000242,7]
[341942663,1731318445635,-151.0,0.000242,7]
[341942664,1731318445658,-1162.564185,0.000242,7]
[341942665,1731318445682,-1162.564185,0.000242,7]
[341942666,1731318445712,-585.689094,0.000242,7]
[341942667,1731318445743,-585.689094,0.000242,7]
[341942668,1731318445771,-284.956872,0.000242,7]
[341942669,1731318445797,-284.956872,0.000242,7]
[341942670,1731318445823,-631.007892,0.000242,7]
[341942671,1731318445848,-631.007892,0.000242,7]
[341942672,1731318445873,-199.991712,0.000242,7]
[341942673,1731318445898,-199.991712,0.000242,7]
[341942674,1731318445920,-2009.812751,0.000242,7]
[341942675,1731318445943,-247.83621,0.0002421,7]
[341942676,1731318445972,-151.0,0.0002421,7]
[341942677,1731318445996,-151.0,0.0002421,7]
[341942678,1731318446018,-151.0,0.0002421,7]
[341942679,1731318446040,-151.0,0.0002421,7]
[341942680,1731318446062,-151.0,0.0002421,7]
[341942681,1731318446083,-151.0,0.0002421,7]
[341942682,1731318446104,-151.0,0.0002421,7]
[341942683,1731318446125,-151.0,0.0002421,7]
[341942684,1731318446145,-151.0,0.0002421,7]
[341942685,1731318446167,-151.0,0.0002421,7]
[341942686,1731318446188,-151.0,0.0002421,7]
[341942687,1731318446213,-169.039916,0.0002421,7]
[341942688,1731318446236,-159.922946,0.0002421,7]
[341942689,1731318446259,-159.922946,0.0002421,7]
[341942690,1731318446281,-245.093411,0.0002421,7]
[341942691,1731318446301,-151.0,0.0002421,7]
[341942692,1731318446322,-309.073197,0.0002421,7]
[341942693,1731318446344,-151.0,0.0002421,7]
[341942694,1731318446364,-309.073197,0.0002421,7]
[341942695,1731318446385,-591.069816,0.0002421,7]
[341942696,1731318446406,-591.069816,0.0002421,7]
[341942697,1731318446428,-159.442251,0.0002421,7]
[341942698,1731318446450,-159.442251,0.0002421,7]
[341942699,1731318446474,-3000.0,0.0002421,2]